Cogmind - Beta 13 @@@ ROGUE MODE // 2024.04.03 @ 14:05:31 Player: Nathan Result: Destroyed by G-34 Mercenary with Small Laser Performance ------------- Evolutions (0) 0 Regions Visited (1) 200 Robots Destroyed (11) 55 Value Destroyed (254) 254 Prototype IDs (0) 0 Alien Tech Used (0) 0 Bonus (0) 0 TOTAL SCORE: 509 Bonus ------- None Cogmind --------- Core Integrity 0/250 Matter 288/300 Energy 100/100 System Corruption 2% Temperature Cool (6) Movement Rolling (100) Location -10/Materials Parts ------- > --- POWER (1) -------- (None) > --- PROPULSION (2) --- Compact Wheel > --- UTILITY (2) ------ Small Storage Unit Structural Scanner > --- WEAPON (2) ------- Light Assault Rifle Light Assault Rifle > --- INVENTORY (8) ---- Aluminum Leg Improved Heat Sink Small Storage Unit Peak State ------------ > --- POWER ------------ Ion Engine > --- PROPULSION ------- Aluminum Leg Aluminum Leg > --- UTILITY ---------- Small Storage Unit Sensor Array > --- WEAPON ----------- EM Pulse Gun Grenade Launcher > --- INVENTORY -------- Light Ion Engine Wheel Compact Wheel Small Storage Unit Assault Rifle [Rating: 7] Favorites ----------- Power Light Ion Engine Engine Light Ion Engine Propulsion Aluminum Leg Leg Aluminum Leg Wheel Compact Wheel Flight Unit Flight Unit Utility Small Storage Unit Device Structural Scanner Storage Small Storage Unit Weapon Light Assault Rifle Energy Gun EM Pulse Gun Ballistic Gun Light Assault Rifle Launcher Grenade Launcher Build | -11 -10 ------- Run | Yrd Mat Slots Evolved . | . . Power . | . . Propulsion . | . . Utility . | . . Weapon . | . . Parts Attached 23 | 5 18 Power 4 | 1 3 Engine 4 | 1 3 Core . | . . Reactor . | . . Propulsion 8 | 2 6 Treads . | . . Leg 4 | 2 2 Wheel 2 | . 2 Hover . | . . Flight 2 | . 2 Utility 3 | . 3 Device 2 | . 2 Storage 1 | . 1 Processor . | . . Hackware . | . . Protection . | . . Artifact . | . . Weapon 8 | 2 6 Energy Gun 2 | 2 . Energy Cannon . | . . Ballistic Gun 3 | . 3 Ballistic Cannon . | . . Launcher 3 | . 3 Special Weapon . | . . Impact Weapon . | . . Slashing Weapon . | . . Piercing Weapon . | . . Special Melee Weapon . | . . Unidentified Prototypes . | . . Parts Lost 11 | . 11 Power 2 | . 2 Propulsion 5 | . 5 Utility 1 | . 1 Weapon 3 | . 3 Highest Loss Streak 7 | . 7 To Critical Strikes . | . . Average Slot Usage (%) 70 | . 70 Engine 8 | . 8 Leg 11 | . 11 Wheel 9 | . 9 Device 12 | . 12 Storage 12 | . 12 Energy Gun 4 | . 4 Ballistic Gun 9 | . 9 Launcher 1 | . 1 Naked Turns . | . . Heaviest Build 16 | 6 16 Greatest Support 26 | 20 26 Greatest Overweight (x) 1 | 1 1 Average Overweight (x) . | . . Largest Inventory Capacity 8 | 5 8 Average Capacity 7 | 5 7 Most Carried 6 | 5 6 Average Carried 4 | 4 4 Final Capacity 8 | 5 8 Final Carried 5 | 5 3 Class Distribution -------------------- 100% | Mutant Dominant Class ---------------- Mutant | -10/Materials Resources | -11 -10 ----------- Run | Yrd Mat Matter Collected 502 | 191 311 Remotely . | . . Salvage Created 243 | . 243 Parts 16 | . 16 Haulers Intercepted . | . . Recyclers Shooed . | . . Parts Field Recycled . | . . Retrieved Matter . | . . Parts Self-Destructed . | . . Prevented . | . . Kills | -11 -10 ------- Run | Yrd Mat Combat Hostiles Destroyed 9 | . 9 Guns 4 | . 4 AOE 5 | . 5 Classes Destroyed 4 | . 4 Builder 1 | . 1 Operator 1 | . 1 Swarmer 4 | . 4 Grunt 5 | . 5 Best Kill Streak 4 | . 4 Combat Bots Only 3 | . 3 Max Kills in Single Turn 2 | . 2 Gunslinging . | . . Exploded 2 | . 2 Melee . | . . Uniques/NPCs Destroyed . | . . Combat | -11 -10 -------- Run | Yrd Mat Hostile Shots Fired 133 | . 133 Missed 42 | . 42 Damage Taken 1019 | . 1019 Core 252 | . 252 Absorbed by Shields . | . . Core Remaining (%) 100 | 100 . Volleys Fired 43 | . 43 Largest 2 | . 2 Hottest 70 | . 70 Shots Fired 72 | . 72 Gun 68 | . 68 Cannon . | . . Launcher 4 | . 4 Special . | . . Kinetic 60 | . 60 Thermal . | . . Explosive 4 | . 4 Electromagnetic 8 | . 8 Robot Hit Streak 9 | . 9 Robot Miss Streak 3 | . 3 Penetration Max . | . . Secondary Targets 1 | . 1 Max Gunslinging Chain 1 | . 1 Shots Hit Robots 40 | . 40 Core Hits 19 | . 19 Critical Kills . | . . Critical Parts Destroyed . | . . Critical Strikes . | . . Melee Attacks . | . . Impact . | . . Slashing . | . . Piercing . | . . Sneak Attacks . | . . Combat Hostiles . | . . Follow-up Attacks . | . . Damage Inflicted 804 | . 804 Guns 393 | . 393 Cannons . | . . Explosions 407 | . 407 Melee . | . . Ramming 4 | . 4 Kinetic 378 | . 378 Thermal . | . . Explosive 407 | . 407 Electromagnetic 15 | . 15 Impact . | . . Slashing . | . . Piercing . | . . Highest Corruption 2 | . 2 Average Corruption 2 | . 2 Corruption Purged . | . . Corruption Blocked . | . . Effects 1 | . 1 Misfires 1 | . 1 Overload Shots . | . . Overflow Damage 18 | . 18 Projectiles . | . . Explosions 18 | . 18 Melee . | . . Knockbacks . | . . Impact . | . . Kinetic . | . . Secondary . | . . Self-Inflicted Damage 49 | . 49 Shots 2 | . 2 Rammed 2 | . 2 Targets Rammed 2 | . 2 Kicked . | . . Crushed . | . . Highest Temperature 27 | . 27 Average Temperature 8 | . 8 Received Heat Transfer 426 | . 426 Siege Activations . | . . Robots Corrupted . | . . Combat Hostiles . | . . Parts Fried . | . . Impact Corruptions . | . . Robots Melted . | . . Combat Hostiles . | . . Parts Melted . | . . Heat Transferred . | . . Parts Sabotaged . | . . Parts Stolen . | . . Parts Stripped . | . . Power Chain Reactions . | . . Alert | -11 -10 ------- Run | Yrd Mat Peak Influence 241 | . 241 Initial . | . . Average 127 | . 137 Maximum Alert Level 1 | . 1 Low Security (%) 74 | 100 72 Level 1 25 | . 27 Level 2 . | . . Level 3 . | . . Level 4 . | . . Level 5 . | . . High Security . | . . Max Security . | . . Squads Dispatched 3 | . 3 Investigation 1 | . 1 Extermination . | . . Reinforcement 2 | . 2 Assault . | . . Garrison . | . . Intercept . | . . Searches Triggered . | . . Construction Impeded . | . . Haulers Reinforced . | . . Active Scanning Responses . | . . Cargo Convoy Interrupts . | . . Stealth | -11 -10 --------- Run | Yrd Mat Distress Signals 2 | . 2 Communications Jammed . | . . Distress Signals . | . . Times Spotted 32 | . 32 Peak Tracking Total 7 | . 7 Tactical Retreats 7 | . 7 Traps | -11 -10 ------- Run | Yrd Mat Traps Triggered 2 | . 2 Indirectly . | . . Trap Hack Attempts . | . . Triggered . | . . Disarmed . | . . Reprogrammed . | . . Reused . | . . Traps Extracted . | . . Installed . | . . Triggered . | . . Machines | -11 -10 ---------- Run | Yrd Mat Machines Disabled 1 | . 1 Max in Single Turn 1 | . 1 Machines Repaired . | . . Machines Dismantled . | . . Machines Sabotaged . | . . Overloaded Fab Kills . | . . Hacking | -11 -10 --------- Run | Yrd Mat Machines Accessed 2 | . 2 Terminals 1 | . 1 Fabricators . | . . Repair Stations . | . . Recycling Units 1 | . 1 Scanalyzers . | . . Garrison Access . | . . Total Hacks 2 | . 2 Successful 2 | . 2 Failed . | . . Catastrophic . | . . Database Lockouts . | . . Manual . | . . Terminals 1 | . 1 Fabricators . | . . Repair Stations . | . . Recycling Units 1 | . 1 Scanalyzers . | . . Garrison Access . | . . Terminal Hacks 1 | . 1 Zone Layout 1 | . 1 Fabricator Hacks . | . . Repair Station Hacks . | . . Recycling Unit Hacks 1 | . 1 Report Inventory 1 | . 1 Scanalyzer . | . . Garrison Access Hacks . | . . Unauthorized Hacks . | . . Terminals . | . . Fabricators . | . . Repair Stations . | . . Recycling Units . | . . Scanalyzers . | . . Garrison Access . | . . Data Cores Recovered . | . . Used . | . . Hacking Detections . | . . Full Trace Events . | . . Feedback Events . | . . Feedback Blocked . | . . Robot Schematics Acquired . | . . Robots Built . | . . Authchips . | . . Time . | . . Total Robot Build Rating . | . . Part Schematics Acquired . | . . Parts Built . | . . Authchips . | . . Time . | . . Total Part Build Rating . | . . Parts Repaired . | . . Time . | . . Parts Recycled . | . . Recycled Matter . | . . Retrieved Matter . | . . Retrieved Components . | . . Parts Scanalyzed . | . . Part Schematics Acquired . | . . Parts Damaged . | . . Bothacking | -11 -10 ------------ Run | Yrd Mat Used RIF Installer . | . . Robots Hacked . | . . Non-combat . | . . Combat . | . . Robot Hacks Applied . | . . Relay Couplers Released . | . . Fabnet Peak Effective % . | . . Robots Rewired . | . . Allies Hacked . | . . Hacks Repelled . | . . Allies | -11 -10 -------- Run | Yrd Mat Total Allies . | . . Largest Group . | . . Highest-Rated Group . | . . Highest-Rated Ally . | . . Total Orders . | . . Ally Attacks . | . . Total Damage . | . . Kills . | . . Allies Corrupted . | . . Allies Melted . | . . Intel | -11 -10 ------- Run | Yrd Mat Robot Analysis Total . | . . Derelict Logs Recovered . | . . Drone Launches . | . . Drone Recoveries . | . . Exploration | -11 -10 ------------- Run | Yrd Mat Turns Passed 785 | 56 729 Spaces Moved 618 | 42 576 Core 173 | 10 163 Treads . | . . Legs 212 | 32 180 Wheels 232 | . 232 Hover . | . . Flight 1 | . 1 Fastest Speed 50 | 50 90 Average Speed 102 | 105 102 Slowest Speed 190 | 120 190 Overloaded Moves . | . . Propulsion Burnouts . | . . Robots Hopped . | . . Cave-ins Triggered . | . . Exploration Rate (%) 47 | 5 90 Regions Visited 1 Branch Regions . Pre-discovered Areas . | . . Known Exits Taken . | . . Unknown Exits Taken 1 | 1 . Scrap Searched . | . . Spaces Dug . | . . Terrain Destroyed 28 | . 28 Melee . | . . Projectile . | . . AOE 28 | . 28 Terrain Rammed . | . . Walls Destroyed . | . . Machines Disabled . | . . Actions | -11 -10 --------- Run | Yrd Mat Total 701 | 51 650 Wait 2 | . 2 Move 617 | 41 576 Hop . | . . Pick Up 7 | 5 2 Fast Attach 15 | 5 10 Attach 6 | . 6 Detach 2 | . 2 Swap 2 | . 2 Drop 5 | . 5 Fire 43 | . 43 Melee . | . . Ram 2 | . 2 Kick . | . . Crush . | . . Escape Stasis . | . . Rewire . | . . Trap . | . . Miscellaneous . | . . Route ------- -11/Scrapyard -10/Materials (discovered 3 exits: [*Mat x2] / [*Min]) History --------- Turn | Location | Event 20 | -11/Scrapyard | Discovered new exit (range 15) 57 | -11/Scrapyard | Entered Materials 295 | -10/Materials | Discovered new exit (range 14) 297 | -10/Materials | Discovered new exit (range 13) 310 | -10/Materials | Build established: Mutant 346 | -10/Materials | Core integrity fell below 50% 387 | -10/Materials | Lost 7 parts (1p3n1u2w) 540 | -10/Materials | Core integrity fell below 20% 701 | -10/Materials | Discovered new exit (range 5) 786 | -10/Materials | Destroyed by G-34 Mercenary with Small Laser Last Messages --------------- Acquired Lgt. Assault Rifle. Acquired 58 matter. Lgt. Ion Engine destroyed. G-34 Mercenary destroyed. Acquired 15 matter. Acquired Aluminum Leg. K-01 Serf cleans the Nuclear Reactor. EXIT=FOUND K-01 Serf cleans the Atomic Centrifuge. O-16 Technician: "IFF HANDSHAKE FAILED. SECURING TERMINAL." K-01 Serf cleans the Atomic Centrifuge. ALERT: Hostiles spotted, dispatching reinforcements to Terminal M002. System corrupted: FCS attempts to trigger Lgt. Assault Rifle. System corrupted: Lgt. Assault Rifle misfires. O-16 Technician destroyed. Switching to secondary target: G-34 Mercenary. Wheel destroyed. Map ----- +----------------------------------------------------+ | | | | | | | ???????????????????################???? | | ?????????????????? # ##???? | | ?????????????????? # """ """ ##???? | | ?????????????????? # """ """ ##???? | | ?????????????????? # """ """ ##???? | | ?????????????????? # "T" ##???? | | ??????????? # """ ##???? | | ???????????####+##########+########???? | | ??????????? #####????? | | ??????????? ########?? | | ??????????? """ ###########?? | | ??????????? """ # ##?? | | ?????????? """ + """""? ##?? | | ?????????? # """""?????? | | ?????????????## # """""?????? | | ????????????? # ^ """ # """""?????? | | ??? ????????? # """g # """"??????? | | ??? ????????? # ^ """ # ?"""??????? | | ??? ????????? # # ?""???????? | | ???^????????? # ! # ??????????? | | ??? ????????? # """% ############# | | ### ????????? ## """= ############# | | # #????????### """ @# # | | # ############ # / # | | # # ### # # | | /# # ### """ # # | | # # ### """ # # | | ?# # | """ ### """ + # | | ### # """ ### # # | | # """ ### ############# | | # """ ### #" ""### ###?? | | + """ ### #"R""### < ##??? | | # # ### #""" ### ####? | | # ########+### ######## ########? | | #?????# ### ######## # ? | | #?????# ### ######## # """ ?? | | #?????# ## ####### # """"" # | | < #?????# ## # """"" # | | #?????# ## + """"" # | | #?????# ## # """ # | | #?????# ## ! ###+#####+# # | | # ##?????# ######## # # | | # ##?????# ######## + # | | ##?????# ######## """ """ # # | | ##????## + """ """ # # | | ##????## ######## """ """ ######### | | ######## # # ######### | +----------------------------------------------------+ Best States ------------- Heat Dissipation 25 Energy Generation 10 Energy Capacity 250 Matter Stores 300 Matter Capacity 300 Sight Range 16 Robot Scan Range 14 Terrain Scan Density 10 Evasion (%) 55 Item Schematics ----------------- None Robot Schematics ------------------ None Fabricated ------------ Nothing Alien Tech Used ----------------- None Achievements -------------- None Challenges ------------ None Game ------ Seed GaussPiercingDerivative Manual? 0 Play Time 00:10:26 Cumulative 4.9 hours Start 2024.04.03 @ 13:57:59 End 2024.04.03 @ 14:05:31 Sessions 1 Manual Loads 0 Difficulty Rogue Special Mode None Game No. 13 Rogue 7 Adventurer 6 Explorer 0 Win Type - Total 0 Types 0/0/0/0/0/0/0/0/0 Lore% 11 Gallery% 10 Achievement% 8 Wizard Run 0 Options --------- Layout 1 ASCII 0 Keyboard 0 Movement Mouse Keybinds 0 Fullscreen 1 Font 24/Smallcaps Map View 50x35 Zoom Use 0% Tactical HUD 0 Map Filters NONE Filters NONE Steam 1 RUN: 52600d2a-7865-4c1b-b3da-3b39666e4522